[Event "44th Chess Olympiad Open 2022"]
[Site "Chennai"]
[Date "2022.08.07"]
[Round "9.35"]
[White "Gong, Qianyun"]
[Black "Ahn, Hongjin"]
[Result "1-0"]
[WhiteElo "2275"]
[BlackElo "2303"]
[Annotator "RC"]
[PlyCount "67"]
[EventDate "2022.??.??"]
[TimeControl "60"]

1. e4 {[%emt 0:00:03]} c5 {[%emt 0:00:10]} 2. Nf3 {[%emt 0:00:05]} Nf6 {
[%emt 0:00:07]} 3. e5 {[%emt 0:00:16]} Nd5 {[%emt 0:00:05]} 4. Nc3 {[%emt 0:00:
00]} Nxc3 {[%emt 0:00:05]} 5. dxc3 {[%emt 0:00:03]} Nc6 {[%emt 0:00:06]} 6. Bf4
{[%emt 0:00:27]} Qb6 {[%emt 0:00:06]} 7. Rb1 {[%emt 0:00:42]} Qc7 {[%emt 0:00:
00]} 8. Bc4 {[%emt 0:16:36]} e6 {[%emt 0:00:16]} 9. O-O {[%emt 0:02:17]} h6 {
[%emt 0:01:07]} 10. Re1 {[%emt 0:01:53]} b6 {[%emt 0:01:21]} 11. Nd2 {[%emt 0:
00:00]} d5 {[%emt 0:09:03]} 12. exd6 {[%emt 0:11:46]} Bxd6 {[%emt 0:00:03]} 13.
Bxd6 {[%emt 0:00:16]} Qxd6 {[%emt 0:00:03]} 14. Qe2 {[%emt 0:00:16]} Bb7 {
[%emt 0:03:26]} 15. Ne4 {[%emt 0:04:04]} Qc7 {[%emt 0:12:52]} 16. Rbd1 {
[%emt 0:14:31]} O-O {[%emt 0:00:43]} 17. Qg4 {[%emt 0:04:58]} Rad8 {[%emt 0:00:
00]} 18. Nf6+ {[%emt 0:02:19]} Kh8 {[%emt 0:00:02]} 19. Nh5 {[%emt 0:00:05]} g6
{[%emt 0:17:42]} 20. Nf4 {[%emt 0:05:26]} Ne5 {[%emt 0:03:38]} 21. Qg3 {
[%emt 0:00:21]} Rxd1 {[%emt 0:02:09]} 22. Rxd1 {[%emt 0:00:04]} Qb8 {[%emt 0:
00:00]} 23. Bf1 {[%emt 0:01:46]} Kh7 {[%emt 0:02:20]} 24. Re1 {[%emt 0:05:34]}
Rg8 {[%emt 0:02:58]} 25. Nxe6 {[%emt 0:02:45]} f6 {[%emt 0:04:49]} 26. f4 {
[%emt 0:00:49]} Nf7 {[%emt 0:00:59]} 27. Qh4 {[%emt 0:02:18]} g5 {[%emt 0:00:
00]} 28. Qh5 {[%emt 0:01:54]} Qe8 {[%emt 0:01:49]} 29. fxg5 {[%emt 0:04:04]}
fxg5 {[%emt 0:02:03]} 30. Bd3+ {[%emt 0:02:25]} Kh8 {[%emt 0:00:06]} 31. Bg6 {
[%emt 0:00:29]} Rg7 {[%emt 0:04:43]} 32. Bxf7 {[%emt 0:00:59]} Rxf7 {[%emt 0:
00:00]} 33. Qxh6+ {[%emt 0:00:03]} Rh7 {[%emt 0:00:41]} 34. Qxh7+ {[%emt 0:00:
00]} 1-0

[Event "44th Chess Olympiad Open 2022"]
[Site "Chennai"]
[Date "2022.08.07"]
[Round "9.35"]
[White "Kwon, Sehyun"]
[Black "Siddharth, Jagadeesh"]
[Result "1/2-1/2"]
[WhiteElo "2225"]
[BlackElo "2426"]
[Annotator "TA"]
[PlyCount "97"]
[EventDate "2022.??.??"]
[TimeControl "60"]

{[%evp 9,97,15,24,9,14,18,7,0,32,32,37,18,35,35,32,7,31,23,30,12,32,38,53,53,
53,47,53,53,53,53,53,40,34,30,22,27,27,29,56,37,57,35,44,0,0,-7,0,0,0,-7,0,0,0,
0,3,0,0,0,0,0,0,0,0,0,0,0,0,0,0,0,0,-31,21,0,0,0,0,0,0,0,0,0,0,0,0,0,0,0,0,0]} 
1. e4 {[%emt 0:00:19]} c6 {[%emt 0:00:53]} 2. d4 {[%emt 0:00:17]} d5 {[%emt 0:
00:00]} 3. e5 {[%emt 0:02:06]} c5 {[%emt 0:00:30]} 4. Nf3 {[%emt 0:01:10]} cxd4
{[%emt 0:00:21]} 5. Nxd4 {[%emt 0:00:06]} Nc6 {[%emt 0:00:26]} 6. Nxc6 {
[%emt 0:00:08] B12: Caro-Kann: Advance Variation.} bxc6 {[%emt 0:00:06]} 7. Bd3
{[%emt 0:00:53]} e6 {[%emt 0:00:17]} 8. Be3 {[%emt 0:03:56]} Ba6 {[%emt 0:00:
00]} 9. O-O {[%emt 0:09:06]} Bxd3 {[%emt 0:00:20]} 10. cxd3 {[%emt 0:03:32]}
Ne7 {[%emt 0:05:53] [#]} 11. Qc2 $146 {[%emt 0:11:17]} ({Predecessor:} 11. Qa4
Qd7 12. Rc1 Ng6 13. f4 c5 14. Qxd7+ Kxd7 15. g3 a5 16. Nd2 a4 17. Bxc5 Bxc5+
18. Rxc5 {1-0 (38) Martinez Alcantara,J (2615)-Grandelius,N (2672) Chess.com
INT 2022}) 11... d4 {[%emt 0:03:14]} 12. Bf4 {[%emt 0:03:14]} Qd5 {[%emt 0:00:
00]} 13. Nd2 {[%emt 0:03:11]} Ng6 {[%emt 0:06:45]} 14. Bg3 {[%emt 0:00:18]} Be7
{[%emt 0:02:27]} 15. Rac1 {[%emt 0:06:40]} h5 {[%emt 0:12:51] [#] aiming for ..
.h4.} 16. h3 {[%emt 0:04:24]} ({Weaker is} 16. Qxc6+ Qxc6 17. Rxc6 h4 $17)
16... h4 {[%emt 0:05:52]} 17. Bh2 {[%emt 0:00:09]} Rb8 {[%emt 0:03:42]} 18. Nc4
{[%emt 0:11:09]} O-O {[%emt 0:02:19]} 19. f4 {[%emt 0:06:02]} Rb5 {[%emt 0:00:
00]} 20. Qe2 {[%emt 0:09:39]} f5 {[%emt 0:02:46]} 21. Rc2 {[%emt 0:03:49]} c5 {
[%emt 0:04:21]} 22. Rfc1 {[%emt 0:01:14]} Rfb8 {[%emt 0:00:30]} 23. b3 {
[%emt 0:01:24]} Nh8 {[%emt 0:03:42][%cal Yg6h8,Yh8f7,Yf7d8,Yd8c6,Yc6b4]} 24.
Kf1 {[%emt 0:05:28]} g6 {[%emt 0:00:28]} 25. Nb2 {[%emt 0:01:08]} Nf7 {[%emt 0:
01:14]} 26. Na4 {[%emt 0:04:04]} Nd8 {[%emt 0:02:53]} 27. Bg1 {[%emt 0:02:13]
[%cal Yh2g1,Yg1f2,Yf2e1]} Nc6 {[%emt 0:00:33]} 28. Bf2 {[%emt 0:00:32]} Nb4 {
[%emt 0:03:51]} 29. Rb2 {[%emt 0:01:19]} Qb7 {[%emt 0:00:00]} 30. Be1 {[%emt 0:
00:37]} Nd5 {[%emt 0:00:34]} 31. Bd2 {[%emt 0:00:07]} Qc8 {[%emt 0:07:32]} 32.
Rbc2 {[%emt 0:00:35]} Qf8 {[%emt 0:03:26]} 33. Kg1 {[%emt 0:02:00]} a5 {
[%emt 0:04:36]} 34. Kh2 {[%emt 0:00:30]} Kf7 {[%emt 0:00:00]} 35. Nb2 {[%emt 0:
01:06][%cal Ya4b2,Yb2c4,Yc4d2,Yd2f3]} Nb4 {[%emt 0:04:01]} 36. Bxb4 {[%emt 0:
00:47]} axb4 {[%emt 0:00:03]} 37. Nc4 {[%emt 0:00:28]} Qd8 {[%emt 0:00:35]} 38.
Rg1 {[%emt 0:02:26]} Qd5 {[%emt 0:00:00]} 39. Nd2 {[%emt 0:01:21]} Rg8 {
[%emt 0:02:34]} 40. Re1 {[%emt 0:00:53]} Ke8 {[%emt 0:02:14]} (40... g5 $15)
41. Nf3 {[%emt 0:07:19] The position is equal.} Kd7 {[%emt 0:02:29]} 42. Qf2 {
[%emt 0:02:33]} Rh8 {[%emt 0:04:04]} 43. Rc4 {[%emt 0:00:31][%cal Rf3d4] [#]
Nxd4! is the strong threat.} Ke8 {[%emt 0:00:00]} 44. Rg1 {[%emt 0:04:57]} Ra5
{[%emt 0:00:50]} 45. Rc2 {[%emt 0:03:33]} Kd7 {[%emt 0:01:02]} 46. Rc4 {
[%emt 0:00:07]} Ke8 {[%emt 0:00:04]} 47. Rc2 {[%emt 0:00:00]} Kd7 {[%emt 0:00:
02]} 48. Rgc1 {[%emt 0:04:13]} Ke8 {[%emt 0:01:52]} 49. Rg1 {[%emt 0:03:44]
Weighted Error Value: White=0.05 (flawless) /Black=0.06 (flawless)} 1/2-1/2

[Event "44th Chess Olympiad Open 2022"]
[Site "Chennai"]
[Date "2022.08.07"]
[Round "9.35"]
[White "Kim, Changhoon"]
[Black "Wong, Zhenyong Jayden"]
[Result "0-1"]
[WhiteElo "1827"]
[BlackElo "2163"]
[Annotator "RC"]
[PlyCount "78"]
[EventDate "2022.??.??"]
[TimeControl "60"]

1. d4 {[%emt 0:00:03]} Nf6 {[%emt 0:00:09]} 2. c4 {[%emt 0:00:06]} e6 {[%emt 0:
00:00]} 3. g3 {[%emt 0:00:16]} c5 {[%emt 0:00:31]} 4. d5 {[%emt 0:00:10]} exd5
{[%emt 0:00:20]} 5. cxd5 {[%emt 0:00:04]} d6 {[%emt 0:00:08]} 6. Nc3 {[%emt 0:
00:00]} g6 {[%emt 0:00:09]} 7. Bg2 {[%emt 0:00:04]} Bg7 {[%emt 0:00:02]} 8. Nf3
{[%emt 0:00:03]} O-O {[%emt 0:00:10]} 9. O-O {[%emt 0:00:03]} Re8 {[%emt 0:00:
00]} 10. Nd2 {[%emt 0:00:24]} a6 {[%emt 0:00:18]} 11. a4 {[%emt 0:00:04]} Nbd7
{[%emt 0:00:12]} 12. h3 {[%emt 0:00:12]} Rb8 {[%emt 0:00:37]} 13. Nc4 {[%emt 0:
00:00]} Ne5 {[%emt 0:01:13]} 14. Na3 {[%emt 0:00:12]} Nh5 {[%emt 0:01:12]} 15.
e4 {[%emt 0:05:39]} Bd7 {[%emt 0:00:41]} 16. a5 {[%emt 0:17:43]} Qxa5 {[%emt 0:
00:00]} 17. g4 {[%emt 0:00:06]} Nf6 {[%emt 0:00:25]} 18. f4 {[%emt 0:02:11]}
Nexg4 {[%emt 0:00:24]} 19. hxg4 {[%emt 0:00:33]} Nxg4 {[%emt 0:00:09]} 20. Bf3
{[%emt 0:03:16]} h5 {[%emt 0:08:08]} 21. Kg2 {[%emt 0:05:01]} b5 {[%emt 0:00:
00]} 22. Nc2 {[%emt 0:00:30]} Qd8 {[%emt 0:06:53]} 23. Ne3 {[%emt 0:07:19]} b4
{[%emt 0:03:22]} 24. Na4 {[%emt 0:02:01]} Qh4 {[%emt 0:12:42]} 25. Bxg4 {
[%emt 0:01:40]} hxg4 {[%emt 0:01:19]} 26. Rh1 {[%emt 0:02:23]} Qf6 {[%emt 0:00:
00]} 27. Nxg4 {[%emt 0:16:41]} Bxg4 {[%emt 0:00:11]} 28. Qxg4 {[%emt 0:00:04]}
Rxe4 {[%emt 0:00:13]} 29. Bd2 {[%emt 0:07:54]} Rbe8 {[%emt 0:02:41]} 30. Rhe1 {
[%emt 0:29:09]} Qd4 {[%emt 0:01:09]} 31. Rad1 {[%emt 0:00:07]} Qxd5 {[%emt 0:
00:00]} 32. Kf2 {[%emt 0:01:07]} Bd4+ {[%emt 0:01:28]} 33. Kg3 {[%emt 0:00:30]}
Qb3+ {[%emt 0:00:43]} 34. Qf3 {[%emt 0:00:24]} Qxa4 {[%emt 0:02:54]} 35. Rxe4 {
[%emt 0:00:06]} Rxe4 {[%emt 0:00:05]} 36. b3 {[%emt 0:00:35]} Qe8 {[%emt 0:00:
00]} 37. Rh1 {[%emt 0:00:39]} Be3 {[%emt 0:04:48]} 38. Rh4 {[%emt 0:00:54]}
Bxd2 {[%emt 0:00:24]} 39. Qh1 {[%emt 0:00:15]} Be1+ {[%emt 0:00:32]} 0-1

[Event "44th Chess Olympiad Open 2022"]
[Site "Chennai"]
[Date "2022.08.07"]
[Round "9.36"]
[White "Volodin, Aleksandr"]
[Black "Sharifov, Mekhriddin"]
[Result "1/2-1/2"]
[WhiteElo "2454"]
[BlackElo "2097"]
[Annotator "TA"]
[PlyCount "171"]
[EventDate "2022.??.??"]
[TimeControl "60"]

{[%evp 15,171,7,10,0,0,0,5,6,0,-6,22,-12,-22,-18,-18,-48,-45,-41,-33,-56,-53,
-61,-47,-86,-52,-58,-58,-54,-59,-54,-70,-73,-46,-65,-74,-80,-81,-61,0,-6,0,0,0,
-48,-63,-72,-7,-111,-42,-129,-111,-135,-121,-111,-62,-72,-88,-90,-86,-78,-86,
-80,-29,-44,0,0,0,0,0,-7,0,0,0,8,13,10,62,51,104,104,104,105,147,145,145,162,
183,19,394,367,290,157,270,207,207,0,85,44,32,7,1,0,0,0,0,0,0,-105,-110,-95,
-96,-86,-62,-47,-64,-50,-67,-53,0,0,0,0,0,0,0,0,62,62,59,59,474,11,12,0,0,0,0,
0,0,-62,-60,-47,-39,-39,-39,-221,-137,-137,-137,-131,-91,-91,-79,-90,-39,-41,
-30,-41]} 1. d4 {[%emt 0:00:03]} Nf6 {[%emt 0:00:04]} 2. c4 {[%emt 0:00:04]} e6
{[%emt 0:00:06]} 3. Nf3 {[%emt 0:00:05]} b6 {[%emt 0:00:07]} 4. a3 {[%emt 0:00:
00]} Bb7 {[%emt 0:00:22]} 5. Nc3 {[%emt 0:00:06]} d5 {[%emt 0:00:27]} 6. cxd5 {
[%emt 0:00:07]} Nxd5 {[%emt 0:00:03]} 7. Qc2 {[%emt 0:05:24]} Nxc3 {[%emt 0:00:
00]} 8. Qxc3 {[%emt 0:01:09]} h6 {[%emt 0:00:18]} 9. g3 {[%emt 0:02:26] E12:
Queen's Indian: Unusual White 4th moves, 4 a3, 4 Nc3 Bb7 5 a3 and 4 Nc3 Bb7 .}
Nd7 {[%emt 0:07:30]} 10. Bg2 {[%emt 0:02:13]} Be7 {[%emt 0:03:52] [#]} 11. Bf4
$146 {[%emt 0:08:55] The position is equal.} ({Predecessor:} 11. O-O O-O 12.
Rd1 Rc8 13. Bf4 a5 14. b4 axb4 15. axb4 g5 16. Be3 Nf6 17. Qb2 {½-½ (37)
Skwarczylo,M (2029)-Bartsch,R (2128) FICGS email 2018}) 11... Rc8 {[%emt 0:00:
00]} 12. Rd1 {[%emt 0:07:40]} Nf6 {[%emt 0:04:54]} 13. Qc2 {[%emt 0:06:47]
[%cal Yd4d5]} O-O {[%emt 0:03:27]} 14. O-O {[%emt 0:00:13]} Qe8 {[%emt 0:04:01]
} 15. b4 {[%emt 0:10:17]} (15. Bxc7 $2 Bd6 16. Rc1 Bxc7 $19) 15... c5 {[%emt 0:
00:00]} 16. bxc5 {[%emt 0:00:48]} bxc5 {[%emt 0:00:07]} 17. dxc5 {[%emt 0:00:
00]} Rxc5 {[%emt 0:01:17][%cal Yc8c5,Yc5b5,Yb5b3,Yb3a3]} 18. Qb2 {[%emt 0:00:
12]} Bd5 {[%emt 0:01:24]} 19. Ne5 {[%emt 0:08:21][%cal Ye2e4]} Rb5 {[%emt 0:09:
38]} 20. Qa1 {[%emt 0:01:00]} Bxg2 {[%emt 0:10:58]} 21. Kxg2 {[%emt 0:00:15]}
Qa8+ {[%emt 0:00:02]} 22. Kg1 {[%emt 0:03:33]} Nd5 {[%emt 0:00:00]} (22... Rc8
{feels hotter.} 23. Rc1 Nd5 24. Nd3 Rb3) 23. Bd2 {[%emt 0:00:00]} Rb3 {[%emt 0:
02:32]} 24. a4 {[%emt 0:00:35]} Ra3 {[%emt 0:08:15]} 25. Qd4 {[%emt 0:02:23]}
Bf6 {[%emt 0:00:17]} 26. a5 {[%emt 0:10:28]} Qb8 {[%emt 0:00:00]} (26... Rc8 $1
$15) 27. Qc5 $11 {[%emt 0:00:15] Strongly threatening Nd7.} Be7 {[%emt 0:00:07]
} 28. Qd4 {[%emt 0:00:17]} Bf6 {[%emt 0:00:03]} 29. f4 {[%emt 0:02:02]} (29.
Qc5 $11 Ra4 30. Qc2) 29... Rd8 $36 {[%emt 0:06:49][%cal Yd5e3] Threatens to
win with ...Ne3! Black has the initiative.} 30. Qc5 {[%emt 0:03:00] Inhibits
Ne3.} Be7 {[%emt 0:00:00]} (30... Ra2 $1 $17 31. Qc4 Rb2) 31. Qf2 {[%emt 0:01:
16]} (31. Qc4 $11) 31... Qa8 {[%emt 0:03:54]} (31... Ra2 $1 $17 {And now ...
Rc8 would win.} 32. Nc6 Qb5 33. Nxe7+ (33. Nxd8 $2 Bc5 $19) 33... Nxe7) 32. Qg2
{[%emt 0:03:16]} (32. f5 $15) 32... Ra2 $17 {[%emt 0:01:46]} (32... Ne3 $6 33.
Bxe3 Qxg2+ 34. Kxg2 $11) (32... Bc5+ 33. Kh1) 33. Qf3 {[%emt 0:00:36]} Bc5+ {
[%emt 0:01:37]} 34. Kh1 {[%emt 0:00:16][%cal Yd1c1]} Nf6 {[%emt 0:01:04]} (
34... Rc8 $17 35. Nd3 Be3) 35. Qxa8 {[%emt 0:00:00]} Rxa8 {[%emt 0:00:02]} 36.
Nd3 {[%emt 0:00:09]} Be7 {[%emt 0:01:34]} 37. Nc1 {[%emt 0:01:16]} Ra3 {
[%emt 0:00:51]} 38. Kg2 {[%emt 0:03:06]} Bd8 {[%emt 0:02:42]} (38... Ne4 $17
39. Nd3 Nxd2 40. Rxd2 Rxa5) 39. Rf3 $11 {[%emt 0:00:23]} Ra4 {[%emt 0:01:52]}
40. Nb3 {[%emt 0:00:51]} Rb8 {[%emt 0:00:00]} 41. Rd3 {[%emt 0:33:31]} Be7 {
[%emt 0:35:32]} 42. Nd4 {[%emt 0:04:02]} Bc5 {[%emt 0:00:00]} 43. Nc6 {[%emt 0:
00:00]} Rc8 {[%emt 0:01:25]} 44. Ne5 {[%emt 0:00:00]} Bf8 {[%emt 0:00:00]} 45.
Kf3 {[%emt 0:00:00]} a6 {[%emt 0:00:00]} (45... h5 $11) 46. Be1 {[%emt 0:00:00]
} Ra3 {[%emt 0:00:00]} (46... g5 $14) 47. Rxa3 $16 {[%emt 0:01:11]} Bxa3 {
[%emt 0:00:00]} 48. Rb1 {[%emt 0:07:59]} Nd5 {[%emt 0:00:00] Inhibits Rb6.} 49.
e4 {[%emt 0:00:00]} Nc7 {[%emt 0:00:00]} 50. Rb7 {[%emt 0:00:00] White is more
active.} f5 {[%emt 0:00:00]} 51. Nc4 $2 {[%emt 0:00:00]} (51. Rb6 $1 $18 {
[%cal Rb6c6]}) 51... Bc5 $2 {[%emt 0:00:11]} (51... fxe4+ $1 $11 52. Kxe4 Ne8)
52. Nb6 $18 {[%emt 0:00:00]} Bxb6 {[%emt 0:00:10]} 53. Rxb6 {[%emt 0:00:00]
Endgame KRB-KRN} (53. axb6 $18 Ne8 54. exf5 exf5 55. Rd7) 53... Nb5 {[%emt 0:
02:18]} (53... Kf7 $16 54. Bf2 Nb5) 54. Ke3 {[%emt 0:00:00]} ({Don't do} 54.
Rxa6 $6 Nd4+ 55. Ke3 Nc2+ 56. Kd2 fxe4 57. Rxe6 e3+ 58. Kd1 Kf7 $18) 54... Na3
{[%emt 0:01:31]} 55. Kf3 $2 {[%emt 0:00:00]} ({Better is} 55. Rxa6 $18 {
aiming for Kd3.} Nc2+ 56. Kf2) 55... Nc2 {[%emt 0:00:41]} (55... Nb5 $1 $11)
56. Bd2 {[%emt 0:00:00]} Rd8 {[%emt 0:00:06]} 57. Bc1 {[%emt 0:00:00]} (57. Ke2
$5 {[%cal Rb6a6]}) 57... Rd3+ $1 {[%emt 0:00:28]} 58. Kf2 {[%emt 0:00:00]} (58.
Ke2 {seems wilder.} fxe4 59. Bb2 Ne3 60. Rc6) 58... fxe4 {[%emt 0:00:07]} 59.
Rxe6 {[%emt 0:00:33]} Rf3+ {[%emt 0:00:09]} 60. Kg2 {[%emt 0:00:00]} Ne1+ {
[%emt 0:00:16]} 61. Kg1 {[%emt 0:00:00] [#]} (61. Kh3 $1 $11 {remains equal.})
61... Rc3 $1 $17 {[%emt 0:00:07]} 62. Bb2 {[%emt 0:00:00]} Nf3+ {[%emt 0:00:05]
} 63. Kf1 {[%emt 0:00:00]} Rc2 {[%emt 0:00:32]} 64. Ba3 {[%emt 0:00:24]} Nxh2+
{[%emt 0:00:00]} 65. Ke1 {[%emt 0:00:00]} Nf3+ {[%emt 0:00:12]} 66. Kd1 $1 {
[%emt 0:00:00]} Rd2+ {[%emt 0:00:52]} (66... Ra2 $1 $15 67. Bc1 Rxa5 68. Rxe4
Rd5+ 69. Ke2 Nd4+ 70. Kf2 h5) 67. Kc1 $11 {[%emt 0:00:00]} Rd3 {[%emt 0:00:26]}
68. Bb4 {[%emt 0:00:19]} Rd4 {[%emt 0:02:12]} 69. Bc3 {[%emt 0:00:27]} Rd3 {
[%emt 0:00:00]} 70. Kb2 {[%emt 0:00:24]} Nd2 {[%emt 0:00:48]} (70... Nd4 $11
71. Rxa6 e3) 71. Rxa6 $14 {[%emt 0:01:51] Black must now prevent Ra8+.} Nc4+ {
[%emt 0:01:04]} 72. Kb3 {[%emt 0:01:28]} Nd6 $2 {[%emt 0:00:31]} (72... Nxa5+
$1 $14 73. Rxa5 Rxg3) 73. Kc2 $2 {[%emt 0:01:08]} (73. Rb6 $18 Kh7 74. a6)
73... Nb5 $11 {[%emt 0:00:17]} 74. Bb2 {[%emt 0:01:08]} Rxg3 {[%emt 0:00:20]}
75. Rc6 {[%emt 0:00:55]} Rg2+ {[%emt 0:01:10]} 76. Kb3 {[%emt 0:00:15] Hoping
for Rc5.} e3 $1 {[%emt 0:00:13][%cal Ye4e3,Ye3e2]} 77. a6 {[%emt 0:00:20]} ({
Much weaker is} 77. Re6 e2 78. a6 Kf7 $17) ({White should try} 77. Rc1 $11)
77... e2 $15 {[%emt 0:00:16]} 78. Rc1 {[%emt 0:00:43]} Rg6 {[%emt 0:00:37]} 79.
Kb4 {[%emt 0:00:47]} Nc7 {[%emt 0:00:30]} 80. Be5 $2 {[%emt 0:00:29] [#]} (80.
a7 $15) 80... Rxa6 $1 {[%emt 0:00:25]} 81. Re1 {[%emt 0:00:27]} ({Not} 81. Bxc7
$2 {[#]} Rc6 $3 82. Re1 Rxc7 83. Rxe2 Kf7 $19) 81... Nd5+ {[%emt 0:00:26]} 82.
Kc5 {[%emt 0:00:08]} Ra5+ {[%emt 0:00:24]} 83. Kd4 {[%emt 0:00:13]} Ne7 {
[%emt 0:00:29] ...Nc6+ is the strong threat.} 84. Rxe2 {[%emt 0:00:06]} Nc6+ {
[%emt 0:00:19]} (84... Nf5+ $17 85. Kd3 Ra3+ 86. Bc3 Ra4) 85. Ke4 {[%emt 0:00:
01]} Kf7 {[%emt 0:01:08]} 86. Rb2 {[%emt 0:00:57] A wild game. Weighted Error
Value: White=0.25 (precise) /Black=0.31} 1/2-1/2

[Event "44th Chess Olympiad Open 2022"]
[Site "Chennai"]
[Date "2022.08.07"]
[Round "9.36"]
[White "Kiik, Kalle"]
[Black "Khusenkhojaev, Muhammad"]
[Result "1/2-1/2"]
[WhiteElo "2365"]
[BlackElo "2397"]
[Annotator "TA"]
[PlyCount "100"]
[EventDate "2022.??.??"]
[TimeControl "60"]

{[%evp 14,100,0,7,0,0,9,0,0,1,0,-28,0,0,0,-11,-6,-18,0,0,0,-31,-21,-46,-68,-42,
-56,-72,-84,-67,-69,-78,-70,-83,-90,-96,-61,-66,-56,-62,-70,-59,-62,-95,-89,
-106,-103,-138,-95,-98,-106,-92,-90,-156,-160,-170,-124,-121,-113,-176,-157,
-248,0,-3,0,-35,0,0,7,7,7,7,7,7,7,7,8,10,10,10,10,10,10,10,10,10,17,0,0]} 1. e4
{[%emt 0:00:27]} e5 {[%emt 0:00:07]} 2. Bc4 {[%emt 0:00:35]} Nf6 {[%emt 0:00:
00]} 3. d4 {[%emt 0:00:41]} exd4 {[%emt 0:02:32]} 4. Nf3 {[%emt 0:00:11]} Nxe4
{[%emt 0:02:47]} 5. Qxd4 {[%emt 0:00:11]} Nf6 {[%emt 0:01:35]} 6. Nc3 {[%emt 0:
00:00]} Nc6 {[%emt 0:02:22]} 7. Qh4 {[%emt 0:01:35]} Be7 {[%emt 0:03:21]} 8.
Bg5 {[%emt 0:01:00]} d6 {[%emt 0:02:07] C24: Bishop's Opening: 2...Nf6.} 9.
O-O-O {[%emt 0:00:46]} Be6 {[%emt 0:00:58]} 10. Rhe1 {[%emt 0:08:51]} Bxc4 {
[%emt 0:00:49]} (10... d5 $2 11. Nxd5 $1 Nxd5 12. Bxd5 Bxd5 13. Bxe7 Qxe7 14.
Rxd5 Qxe1+ 15. Nxe1 $18) 11. Qxc4 {[%emt 0:01:16]} O-O {[%emt 0:00:00] [#]} 12.
Kb1 $146 {[%emt 0:11:39]} ({Predecessor:} 12. h4 Re8 13. Bxf6 Bxf6 14. Rxe8+
Qxe8 15. Nd5 Qd8 16. Re1 a6 17. Qb3 Rb8 18. Nxf6+ gxf6 {½-½ (41) Hohlbein,M 
(2309)-Duchardt,A (2354) ICCF email 2019}) 12... Qd7 {[%emt 0:00:00]} 13. Bxf6
{[%emt 0:04:48]} Bxf6 {[%emt 0:00:19]} 14. Nd5 {[%emt 0:00:12]} Bd8 {[%emt 0:
00:49]} 15. Re3 {[%emt 0:07:20]} a5 {[%emt 0:37:50]} 16. a3 {[%emt 0:04:34]}
Rb8 {[%emt 0:05:59]} 17. Qf4 {[%emt 0:22:52]} Ne7 {[%emt 0:00:00]} 18. h4 {
[%emt 0:04:55]} Nxd5 {[%emt 0:10:16]} 19. Rxd5 {[%emt 0:00:08]} b5 {[%emt 0:00:
23]} 20. g4 {[%emt 0:03:01]} b4 {[%emt 0:02:30]} 21. g5 {[%emt 0:00:00]} bxa3 {
[%emt 0:06:25]} 22. Rxa3 {[%emt 0:00:47]} Qh3 {[%emt 0:00:57]} 23. Rd1 {
[%emt 0:09:15] Inhibits Qf1.} Rb4 {[%emt 0:02:39]} 24. Qe3 {[%emt 0:00:00]} a4
{[%emt 0:00:47]} 25. Rd4 {[%emt 0:05:19]} Rxd4 {[%emt 0:07:14]} 26. Qxd4 {
[%emt 0:00:20]} Qf1+ {[%emt 0:00:04]} 27. Ka2 {[%emt 0:00:28]} Qe2 {[%emt 0:00:
06]} 28. Qxa4 {[%emt 0:01:22]} Qxf2 {[%emt 0:00:28]} 29. Qc6 {[%emt 0:00:29]}
g6 {[%emt 0:03:17]} 30. c3 {[%emt 0:01:48]} Qe3 {[%emt 0:00:38]} 31. Nd4 {
[%emt 0:00:40]} h6 {[%emt 0:00:25]} 32. gxh6 {[%emt 0:01:31]} Qxh6 {[%emt 0:00:
06]} 33. Ra4 {[%emt 0:00:19]} ({White should try} 33. Nb5) 33... Qh5 $17 {
[%emt 0:00:27]} ({Don't play} 33... Qxh4 34. Ne6 $1 Qxa4+ 35. Qxa4 fxe6 36. Qd7
$14) 34. Nb5 {[%emt 0:01:26]} Bxh4 {[%emt 0:01:20]} ({Stronger than} 34... Qd1
35. Rd4 (35. Ra8 Bxh4 36. Rxf8+ Kxf8 $17) 35... Qc2 36. Rf4 $17) (34... Qc5 $19
35. Qxc5 dxc5) 35. Nxc7 {[%emt 0:00:18] [#]} Bg3 $1 {[%emt 0:00:00]} 36. Nd5 {
[%emt 0:00:37]} (36. Nb5 $17) 36... Be5 $19 {[%emt 0:00:18]} 37. Ra8 {[%emt 0:
01:11] [#]} (37. Nb6 $17 {is a better defense.}) 37... Qg4 $2 {[%emt 0:00:49]}
(37... Rxa8+ $1 $19 38. Qxa8+ Kg7) 38. Rxf8+ $1 $11 {[%emt 0:00:00]} Kxf8 {
[%emt 0:00:01] Endgame KQB-KQN} 39. b4 {[%emt 0:00:18][%cal Yb2b4,Yb4b5,Yb5b6]}
Kg7 {[%emt 0:00:29] And now ...g5 would win.} (39... g5 {is more complex.} 40.
Ka3 Qg1 41. Qc8+ Kg7) 40. Ka3 {[%emt 0:00:00] The position is equal.} Qe2 {
[%emt 0:01:11]} 41. b5 {[%emt 0:05:12]} g5 $1 {[%emt 0:04:25]} 42. b6 {[%emt 0:
00:00]} Qa6+ {[%emt 0:00:08]} 43. Kb3 {[%emt 0:00:09] Black should prevent c4.}
g4 $1 $132 {[%emt 0:00:10] Black puts up resistance} 44. Qc4 {[%emt 0:03:27]}
Qxc4+ {[%emt 0:00:51]} 45. Kxc4 {[%emt 0:00:09] KB-KN} g3 {[%emt 0:00:03]} 46.
Ne3 {[%emt 0:02:45]} d5+ $1 {[%emt 0:00:47]} 47. Kxd5 {[%emt 0:00:09]} f6 {
[%emt 0:00:09]} 48. Ke6 {[%emt 0:05:53] Hoping for c4.} Kf8 $1 {[%emt 0:02:46]}
49. c4 {[%emt 0:02:17] Threatens to win with c5.} Ke8 $1 {[%emt 0:00:37]} 50.
c5 {[%emt 0:03:53] aiming for c6.} Bd4 {[%emt 0:05:53][%csl Yc5,Ye3] Weighted
Error Value: White=0.12 (very precise) /Black=0.13 (very precise)} 1/2-1/2